bitfinex/quotes_SOLUSD_20250108
["timestamp","ask_amount","ask_price","bid_price","bid_amount"]
[1736312605507,0.12549,197.37,197.28,15.45803788]
[1736312605508,1.07543542,197.37,197.28,15.45803788]
[1736312605690,6.3212,197.41,197.32,15.45803788]
[1736312606017,0.9499653,197.43,197.35,15.45803788]
[1736312606209,2.54,197.41,197.31,23.776884]
[1736312606517,2.66549,197.4,197.33,15.45803788]
[1736312607095,0.12549,197.38,197.31,151.85803788]
[1736312607298,0.12549,197.38,197.32,15.45803788]
[1736312607497,0.12549,197.38,197.33,39.23492188]
[1736312607812,0.12549,197.38,197.34,15.45803788]
[1736312608019,0.12549,197.38,197.33,15.45803788]
[1736312608621,0.94986132,197.45,197.37,39.23492188]
[1736312608807,2.54,197.43,197.37,15.45803788]
[1736312609005,0.12549,197.42,197.37,15.45803788]
[1736312611397,2.54,197.45,197.4,15.45803788]
[1736312611601,7.18482457,197.51,197.41,15.45803788]
[1736312611806,2.54,197.5,197.44,15.45803788]
[1736312612199,0.12549,197.48,197.44,15.45803788]
[1736312612598,0.12549,197.48,197.45,15.45803788]
[1736312612834,2.07463835,197.58,197.47,15.45803788]
[1736312613011,3.48928279,197.57,197.48,15.45803788]
[1736312613213,0.12549,197.56,197.49,15.45803788]
[1736312613731,0.12549,197.56,197.47,15.45803788]
[1736312613904,0.12549,197.56,197.48,15.45803788]
[1736312614528,0.12549,197.56,197.45,15.45803788]
[1736312614744,20.12549,197.56,197.45,15.45803788]
[1736312614914,0.12549,197.54,197.46,15.45803788]
[1736312615443,0.12549,197.54,197.47,15.45803788]
[1736312615742,2.54,197.53,197.47,15.45803788]
[1736312615902,0.12549,197.52,197.47,15.45803788]
[1736312616100,0.12549,197.52,197.48,15.45803788]
[1736312616298,0.12549,197.52,197.45,15.45803788]
[1736312616614,1.07485217,197.52,197.44,15.45803788]
[1736312618516,1.07485217,197.52,197.4,15.45803788]
[1736312618923,0.12549,197.47,197.4,23.776884]
[1736312619115,0.12549,197.45,197.4,23.776884]
[1736312619433,0.12549,197.45,197.4,15.45803788]
[1736312620710,2.52,197.47,197.42,15.45803788]
[1736312620926,0.12549,197.46,197.42,15.45803788]
[1736312621133,0.12549,197.46,197.42,23.776884]
[1736312621441,2.52,197.48,197.42,23.776884]
[1736312621606,0.12549,197.47,197.42,39.23492188]
[1736312621811,0.12549,197.47,197.42,15.45803788]
[1736312622014,0.12549,197.47,197.43,15.45803788]
[1736312622436,20.0,197.53,197.44,15.45803788]
[1736312622748,2.52,197.52,197.46,15.45803788]
[1736312622951,2.52,197.52,197.44,15.45803788]
[1736312622952,0.12549,197.51,197.44,15.45803788]
[1736312623111,1.07497233,197.51,197.42,15.45803788]
[1736312623621,0.12549,197.51,197.43,15.45803788]
[1736312624033,0.12549,197.51,197.46,39.23492188]
[1736312624438,1.07482807,197.51,197.43,15.45803788]
[1736312624637,1.07482807,197.51,197.43,23.776884]
[1736312624842,1.07482807,197.51,197.43,39.23492188]
[1736312624843,0.12549,197.51,197.43,39.23492188]
[1736312625133,0.12549,197.51,197.45,15.45803788]
[1736312625509,2.64549,197.52,197.46,15.45803788]
[1736312625968,8.027,197.56,197.47,15.45803788]
[1736312626117,2.52,197.55,197.48,15.45803788]
[1736312626453,0.12549,197.53,197.48,15.45803788]
[1736312626739,0.12549,197.53,197.47,15.45803788]
[1736312627261,0.12549,197.53,197.43,137.922]
[1736312627262,0.12549,197.53,197.45,15.45803788]
[1736312627463,0.12549,197.53,197.47,39.23492188]
[1736312627759,12.91961742,197.63,197.52,15.45803788]
[1736312627974,12.91961742,197.63,197.56,23.776884]
[1736312628319,2.52,197.67,197.58,15.45803788]
[1736312628573,20.0,197.65,197.55,15.45803788]
[1736312628733,0.12549,197.64,197.55,15.45803788]
[1736312629245,0.12549,197.64,197.56,39.23492188]
[1736312629427,7.9024,197.68,197.58,39.23492188]
[1736312629625,2.52,197.67,197.58,39.23492188]
[1736312630061,0.12549,197.66,197.58,39.23492188]
[1736312630742,0.12549,197.66,197.58,15.45803788]
[1736312630928,0.12549,197.66,197.56,15.45803788]
[1736312631132,0.12549,197.64,197.53,15.45803788]
[1736312631330,20.4487885,197.65,197.53,15.45803788]
[1736312631669,20.4487885,197.65,197.54,39.23492188]
[1736312632165,20.4487885,197.65,197.52,1.522]
[1736312632166,20.4487885,197.65,197.55,15.45803788]
[1736312632464,2.52,197.64,197.55,15.45803788]
[1736312632623,2.52,197.64,197.54,15.45803788]
[1736312633246,0.9488591,197.63,197.53,15.45803788]
[1736312633449,0.12549,197.62,197.52,15.45803788]
[1736312634149,0.12549,197.62,197.53,15.45803788]
[1736312634356,20.0,197.58,197.48,15.45803788]
[1736312634656,23.59466131,197.57,197.44,15.45803788]
[1736312635027,23.59466131,197.57,197.42,15.45803788]
[1736312635333,23.59466131,197.57,197.41,15.45803788]
[1736312635956,0.12549,197.55,197.42,23.776884]
[1736312636129,0.12549,197.55,197.42,15.45803788]
[1736312636654,20.0,197.52,197.4,15.45803788]
[1736312636958,0.12549,197.49,197.39,15.45803788]
[1736312637133,0.12549,197.47,197.39,15.45803788]
[1736312638034,0.12549,197.47,197.42,23.776884]
[1736312638649,0.12549,197.47,197.43,15.45803788]
[1736312639142,0.12549,197.47,197.44,23.776884]
[1736312639348,2.52,197.48,197.43,15.45803788]
[1736312639652,0.12549,197.51,197.44,23.776884]
[1736312640226,0.12549,197.51,197.43,23.776884]
[1736312640550,0.12549,197.53,197.43,23.776884]
[1736312640871,20.12549,197.51,197.39,15.45803788]
[1736312641050,20.12549,197.51,197.41,15.45803788]
[1736312643358,0.12549,197.49,197.41,23.776884]
[1736312643555,0.12549,197.44,197.35,15.45803788]
[1736312643745,0.12549,197.42,197.33,153.49743788]
[1736312643945,0.12549,197.42,197.33,17.09743788]
[1736312644456,0.12549,197.42,197.34,23.776884]
[1736312644680,1.07529193,197.42,197.31,15.45803788]
[1736312644878,1.07529193,197.42,197.28,137.9277]
[1736312644879,0.12549,197.4,197.29,15.45803788]
[1736312645160,1.07553442,197.4,197.28,153.38573788]
[1736312645357,1.07553442,197.4,197.29,24.69933681]
[1736312645650,0.9500316,197.42,197.3,24.69933681]
[1736312645853,0.12549,197.41,197.31,23.776884]
[1736312646156,0.12549,197.39,197.29,24.69933681]
[1736312646549,0.12549,197.37,197.29,23.776884]
[1736312646852,0.12549,197.35,197.29,24.69933681]
[1736312647248,0.12549,197.35,197.28,24.69933681]
[1736312647438,0.12549,197.35,197.29,24.69933681]
[1736312648159,21.5122,197.34,197.19,1.5438]
[1736312648349,0.95041729,197.33,197.19,26.24313681]
[1736312648552,0.12549,197.32,197.19,26.24313681]
[1736312649040,1.5122,197.34,197.24,23.776884]
[1736312649361,2.64549,197.33,197.24,24.69933681]
[1736312649581,2.64549,197.33,197.25,24.69933681]
[1736312650072,20.0,197.35,197.28,24.69933681]
[1736312650269,2.52,197.32,197.27,24.69933681]
[1736312650478,2.52,197.32,197.21,136.4]
[1736312650479,0.12549,197.31,197.26,24.69933681]
[1736312650639,0.12549,197.31,197.27,23.776884]
[1736312651341,0.12549,197.31,197.28,23.776884]
[1736312651552,0.12549,197.31,197.27,24.69933681]
[1736312651764,0.12549,197.31,197.25,24.69933681]
[1736312652157,0.12549,197.31,197.26,23.776884]
[1736312653367,0.12549,197.31,197.21,161.09933681]
[1736312653737,0.12549,197.31,197.22,23.776884]
[1736312653962,0.12549,197.31,197.21,24.69933681]
[1736312654165,0.12549,197.31,197.23,24.69933681]
[1736312654339,0.12549,197.31,197.24,23.776884]
[1736312655546,0.12549,197.33,197.24,23.776884]
[1736312655865,2.52,197.32,197.25,48.47622081]
[1736312656071,0.12549,197.31,197.25,48.47622081]
[1736312657136,0.12549,197.31,197.25,23.776884]
[1736312657353,0.12549,197.3,197.25,23.776884]
[1736312657553,0.12549,197.3,197.24,23.776884]
[1736312658175,0.12549,197.3,197.25,23.776884]
[1736312658554,0.12549,197.3,197.24,23.776884]
[1736312658761,0.12549,197.3,197.2,161.09933681]
[1736312658971,0.12549,197.3,197.22,24.69933681]
[1736312659369,0.12549,197.3,197.21,24.69933681]
[1736312659580,0.12549,197.3,197.2,24.69933681]
[1736312660051,0.12549,197.3,197.22,23.776884]
[1736312660692,0.12549,197.3,197.2,48.47622081]
[1736312661469,0.12549,197.3,197.22,23.776884]
[1736312662478,0.12549,197.3,197.2,48.47622081]
[1736312663283,1.07590974,197.3,197.18,24.69933681]
[1736312663666,0.12549,197.28,197.19,23.776884]
[1736312665166,0.12549,197.28,197.17,48.47622081]
[1736312665372,0.12549,197.28,197.17,39.23016221]
[1736312665585,0.12549,197.26,197.19,23.776884]
[1736312665893,0.12549,197.26,197.19,15.45327821]
[1736312666179,0.12549,197.28,197.2,23.776884]
[1736312666383,0.12549,197.25,197.2,23.776884]
[1736312667066,0.12549,197.25,197.2,15.45327821]
[1736312668883,8.0505,197.29,197.23,23.776884]
[1736312669185,2.52,197.28,197.23,15.45327821]
[1736312669388,0.12549,197.27,197.21,15.45327821]
[1736312669968,0.12549,197.27,197.22,15.45327821]
[1736312670887,0.12549,197.27,197.23,23.776884]
[1736312671079,2.08133416,197.39,197.2,160.176884]
[1736312671080,7.8185,197.34,197.25,15.45327821]
[1736312671282,2.52,197.33,197.26,15.45327821]
[1736312671486,7.8185,197.34,197.27,39.23016221]
[1736312671666,2.52,197.33,197.27,39.23016221]
[1736312671992,0.12549,197.32,197.27,39.23016221]
[1736312673397,0.12549,197.32,197.27,23.776884]
[1736312673582,0.12549,197.32,197.25,15.45327821]
[1736312675400,0.12549,197.32,197.27,23.776884]
[1736312675896,2.52,197.35,197.27,15.45327821]
[1736312676190,0.12549,197.34,197.29,23.776884]
[1736312676494,20.0,197.39,197.29,23.776884]
[1736312676797,2.52,197.38,197.31,23.776884]
[1736312676970,0.12549,197.37,197.31,23.776884]
[1736312677484,0.12549,197.37,197.29,39.23016221]
[1736312679376,1.07547208,197.37,197.28,136.4]
[1736312679995,1.07547208,197.37,197.27,23.776884]
[1736312680376,1.07547208,197.37,197.24,175.63016221]
[1736312680574,1.07547208,197.37,197.24,151.85327821]
[1736312681397,1.07547208,197.37,197.25,23.776884]
[1736312682201,1.07547208,197.37,197.25,39.23016221]
[1736312682705,0.12549,197.35,197.25,39.23016221]
[1736312683409,0.12549,197.35,197.25,23.776884]
[1736312683584,3.47018868,197.36,197.23,153.44377821]
[1736312683585,0.12549,197.33,197.23,153.44377821]
[1736312683783,0.12549,197.33,197.22,15.45327821]
[1736312684006,0.12549,197.3,197.19,136.4]
[1736312684305,0.12549,197.28,197.16,15.45327821]
[1736312684613,1.07614201,197.28,197.14,151.85327821]
[1736312684773,0.12549,197.26,197.14,15.45327821]
[1736312684974,20.0,197.24,197.14,15.45327821]
[1736312685276,1.07626745,197.23,197.1,15.45327821]
[1736312685483,0.12549,197.21,197.1,23.776884]
[1736312685821,1.07643034,197.21,197.1,23.776884]
[1736312686177,1.07643034,197.21,197.1,15.45327821]
[1736312686375,0.12549,197.21,197.12,15.45327821]
[1736312687510,0.12549,197.21,197.13,39.23016221]
[1736312688078,0.12549,197.21,197.13,23.776884]
[1736312688585,0.12549,197.21,197.13,15.45327821]
[1736312689507,2.52,197.2,197.15,15.45327821]
[1736312689819,20.0,197.24,197.16,39.23016221]
[1736312689988,0.12549,197.21,197.16,39.23016221]
[1736312690505,2.52,197.22,197.16,39.23016221]
[1736312690801,0.12549,197.23,197.16,39.23016221]
[1736312691587,0.12549,197.23,197.18,23.776884]
[1736312692389,2.52,197.26,197.21,23.776884]
[1736312692819,0.12549,197.25,197.21,23.776884]
[1736312693113,0.12549,197.25,197.21,39.23016221]
[1736312694407,0.12549,197.25,197.16,12.6799]
[1736312694408,0.12549,197.25,197.2,15.45327821]
[1736312698426,0.12549,197.25,197.19,15.45327821]
[1736312699790,0.12549,197.25,197.2,15.45327821]
[1736312700911,0.12549,197.25,197.21,23.776884]
[1736312701602,0.12549,197.25,197.21,15.45327821]
[1736312701806,0.12549,197.25,197.21,23.776884]
[1736312703687,7.7949,197.32,197.22,15.45327821]
[1736312703893,7.7949,197.32,197.26,15.45327821]
[1736312704202,0.12549,197.31,197.26,15.45327821]
[1736312704401,0.12549,197.31,197.27,23.776884]
[1736312704816,0.12549,197.32,197.27,23.776884]
[1736312706619,7.7949,197.37,197.3,23.776884]
[1736312706798,7.7949,197.37,197.3,39.23016221]
[1736312706799,2.52,197.36,197.3,39.23016221]
[1736312707212,0.12549,197.35,197.29,39.23016221]
[1736312707601,0.12549,197.35,197.29,175.63016221]
[1736312707924,0.12549,197.38,197.3,15.45327821]
[1736312708105,2.64549,197.38,197.3,15.45327821]
[1736312708301,0.12549,197.38,197.29,175.63016221]
[1736312708512,2.64549,197.38,197.29,160.176884]
[1736312708692,1.5358,197.41,197.33,15.45327821]
[1736312708892,4.0558,197.41,197.34,23.776884]
[1736312709337,0.12549,197.4,197.34,23.776884]
[1736312709506,0.12549,197.4,197.34,15.45327821]
[1736312709701,0.12549,197.4,197.35,15.45327821]
[1736312709909,0.12549,197.4,197.36,39.23016221]
[1736312710434,0.12549,197.4,197.36,23.776884]
[1736312710925,0.12549,197.41,197.34,15.45327821]
[1736312711112,1.07533997,197.41,197.28,151.85327821]
[1736312711312,0.12549,197.36,197.25,15.45327821]
[1736312711496,0.12549,197.34,197.25,136.4]
[1736312711925,0.12549,197.34,197.25,151.85327821]
[1736312712312,0.12549,197.34,197.26,23.776884]
[1736312712501,0.12549,197.34,197.28,15.45327821]
[1736312713731,0.12549,197.34,197.27,15.45327821]
[1736312714338,2.52,197.35,197.3,15.45327821]
[1736312714513,8.1626,197.42,197.32,15.45327821]
[1736312714708,2.52,197.4,197.32,15.45327821]
[1736312715027,23.902374,197.39,197.33,15.45327821]
[1736312715329,0.12549,197.39,197.33,15.45327821]
[1736312716107,2.52,197.45,197.38,15.45327821]
[1736312716307,2.52,197.45,197.39,15.45327821]
[1736312716511,2.52,197.45,197.4,15.45327821]
[1736312716712,0.12549,197.44,197.38,151.85327821]
[1736312717017,0.12549,197.44,197.38,136.4]
[1736312718020,23.902374,197.44,197.38,136.4]
[1736312718212,43.902374,197.42,197.38,136.4]
[1736312719431,20.0,197.44,197.38,136.4]
[1736312719732,0.12549,197.43,197.38,136.4]
[1736312719932,0.12549,197.43,197.38,151.85327821]
[1736312720331,0.12549,197.44,197.38,151.85327821]
[1736312720539,0.12549,197.44,197.4,15.45327821]
[1736312720830,0.12549,197.45,197.38,151.85327821]
[1736312721228,23.902374,197.45,197.38,151.85327821]
[1736312721436,23.902374,197.45,197.38,136.4]
[1736312721821,23.902374,197.45,197.37,15.45327821]
[1736312722447,23.902374,197.45,197.36,15.45327821]
[1736312722609,0.12549,197.39,197.31,15.45327821]
[1736312722815,2.64549,197.39,197.31,151.85327821]
[1736312723111,0.12549,197.37,197.29,15.45327821]
[1736312723437,0.12549,197.37,197.28,15.45327821]
[1736312723820,0.12549,197.35,197.27,15.45327821]
[1736312724019,0.12549,197.35,197.26,15.45327821]
[1736312724220,23.902374,197.32,197.24,15.45327821]
[1736312724436,26.422374,197.32,197.24,15.45327821]
[1736312724626,26.422374,197.32,197.23,15.45327821]
[1736312725634,26.422374,197.32,197.16,138.0315]
[1736312725635,23.902374,197.3,197.16,138.0315]
[1736312725836,23.776884,197.28,197.18,15.45327821]
[1736312726048,0.12549,197.27,197.18,15.45327821]
[1736312726423,23.902374,197.31,197.18,151.85327821]
[1736312726627,23.902374,197.27,197.18,151.85327821]
[1736312726928,23.902374,197.25,197.14,15.45327821]
[1736312727240,23.902374,197.23,197.14,15.45327821]
[1736312727618,23.902374,197.23,197.1,140.06547215]
[1736312727619,23.902374,197.23,197.15,15.45327821]
[1736312727824,0.12549,197.23,197.17,15.45327821]
[1736312728039,0.12549,197.23,197.16,15.45327821]
[1736312728568,0.12549,197.23,197.18,15.45327821]
[1736312728732,2.52,197.24,197.2,15.45327821]
[1736312728933,0.12549,197.23,197.19,15.45327821]
[1736312729123,23.902374,197.26,197.18,15.45327821]
[1736312729321,23.902374,197.26,197.17,15.45327821]
[1736312729637,0.12549,197.26,197.2,15.45327821]
[1736312729838,20.0,197.28,197.2,15.45327821]
[1736312730146,2.52,197.27,197.18,15.45327821]
[1736312730445,0.12549,197.26,197.19,15.45327821]
[1736312731222,5.0,197.36,197.15,156.4]
[1736312731223,0.95049526,197.35,197.22,15.45327821]
[1736312731429,2.52,197.28,197.23,15.45327821]
[1736312731634,0.12549,197.3,197.22,15.45327821]
[1736312731841,0.12549,197.28,197.23,15.45327821]
[1736312732047,0.12549,197.26,197.15,136.4]
[1736312732225,2.64549,197.26,197.19,15.45327821]
[1736312732426,2.64549,197.26,197.21,15.45327821]
[1736312732622,2.64549,197.26,197.22,15.45327821]
[1736312732841,2.64549,197.26,197.21,15.45327821]
[1736312733341,2.64549,197.26,197.22,15.45327821]
[1736312733538,2.64549,197.26,197.21,15.45327821]
[1736312734240,2.64549,197.26,197.18,15.45327821]
[1736312734426,23.902374,197.24,197.14,15.45327821]
[1736312734742,0.12549,197.24,197.15,15.45327821]
[1736312734927,1.07617531,197.24,197.13,15.45327821]
[1736312735129,0.12549,197.21,197.12,151.85327821]
[1736312735327,0.12549,197.21,197.14,15.45327821]
[1736312736250,2.52,197.26,197.16,15.45327821]
[1736312736745,23.902374,197.25,197.16,15.45327821]
[1736312736946,0.12549,197.25,197.18,15.45327821]
[1736312737147,0.12549,197.25,197.19,15.45327821]
[1736312737349,2.52,197.25,197.2,15.45327821]
[1736312737737,0.12549,197.24,197.2,15.45327821]
[1736312739145,0.12549,197.24,197.17,20.0]
[1736312739353,0.12549,197.24,197.2,15.45327821]
[1736312739849,20.12549,197.24,197.17,136.4]
[1736312740251,0.12549,197.19,197.12,15.45327821]
[1736312740449,0.12549,197.19,197.11,15.45327821]
[1736312740855,0.12549,197.17,197.11,15.45327821]
[1736312741563,0.12549,197.17,197.1,151.85327821]
[1736312741727,23.902374,197.17,197.09,15.45327821]
[1736312741927,23.902374,197.17,197.05,151.85327821]
[1736312741928,23.902374,197.15,197.05,151.85327821]
[1736312742243,23.902374,197.13,197.02,15.45327821]
[1736312742452,0.12549,197.11,197.02,15.45327821]
[1736312742635,0.12549,197.09,197.02,15.45327821]
[1736312742966,0.12549,197.09,197.03,15.45327821]
[1736312743467,0.12549,197.09,197.03,24.7634302]
[1736312743754,0.12549,197.09,197.04,24.7634302]
[1736312744553,0.12549,197.09,197.02,161.1634302]
[1736312744734,23.902374,197.09,197.01,24.7634302]
[1736312744930,23.902374,197.07,196.97,24.7634302]
[1736312745136,23.902374,197.05,196.95,24.7634302]
[1736312745343,23.902374,197.03,196.94,24.7634302]
[1736312745536,0.12549,197.01,196.94,24.7634302]
[1736312745928,0.12549,197.01,196.93,3.67]
[1736312746134,0.12549,197.01,196.96,24.7634302]
[1736312746330,20.0,197.07,196.97,24.7634302]
[1736312746548,3.47157151,197.06,196.97,24.7634302]
[1736312746756,23.902374,197.05,196.96,24.7634302]
[1736312747051,0.95171968,197.05,196.96,24.7634302]
[1736312747356,23.902374,197.04,196.96,24.7634302]
[1736312747560,0.12549,197.04,196.96,24.7634302]
[1736312747749,0.12549,197.04,196.97,24.7634302]
[1736312747946,23.902374,197.05,196.93,140.07]
[1736312748150,23.902374,197.05,196.97,24.7634302]
[1736312748739,0.12549,197.05,196.98,24.7634302]
[1736312749259,0.12549,197.05,196.97,24.7634302]
[1736312749260,23.902374,197.05,196.97,24.7634302]
[1736312749443,23.902374,197.05,196.96,24.7634302]
[1736312750040,23.902374,197.01,196.93,28.4334302]
[1736312750351,0.12549,196.99,196.93,3.67]
[1736312750545,0.12549,196.97,196.93,3.67]
[1736312750741,23.902374,196.97,196.86,136.4]
[1736312750957,24.85437963,196.97,196.86,24.7634302]
[1736312751164,0.12549,196.93,196.85,24.7634302]
[1736312751461,0.12549,196.93,196.86,24.7634302]
[1736312751656,2.64549,196.93,196.87,24.7634302]
[1736312752040,2.64549,196.93,196.88,24.7634302]
[1736312752774,0.12549,196.91,196.83,24.7634302]
[1736312752942,0.12549,196.91,196.81,24.7634302]
[1736312753136,0.12549,196.86,196.78,24.7634302]
[1736312753366,0.12549,196.84,196.76,24.7634302]
[1736312753861,0.12549,196.85,196.78,24.7634302]
[1736312754163,2.52,196.84,196.81,24.7634302]
[1736312754460,23.902374,196.83,196.76,24.7634302]
[1736312754761,23.902374,196.83,196.78,24.7634302]
[1736312755961,0.12549,196.83,196.78,24.7634302]
[1736312756163,0.12549,196.83,196.82,24.7634302]
[1736312757061,23.902374,196.83,196.81,24.7634302]
[1736312757254,23.902374,196.83,196.79,24.7634302]
[1736312758580,23.902374,196.83,196.8,24.7634302]
[1736312758944,23.902374,196.83,196.79,24.7634302]
[1736312760354,23.902374,196.83,196.8,24.7634302]
[1736312760742,2.52,196.84,196.81,24.7634302]
[1736312760943,0.95241914,196.87,196.8,24.7634302]
[1736312761168,23.902374,196.86,196.77,24.7634302]
[1736312761362,23.902374,196.84,196.77,24.7634302]
[1736312761563,0.12549,196.84,196.79,24.7634302]
[1736312761770,2.52,196.88,196.82,24.7634302]
[1736312761944,2.52,196.88,196.84,24.7634302]
[1736312762265,12.45457429,196.89,196.83,24.7634302]
[1736312762564,12.45457429,196.89,196.85,24.7634302]
[1736312762768,12.45457429,196.89,196.86,24.7634302]
[1736312762966,12.45457429,196.89,196.87,24.7634302]
[1736312763167,12.45457429,196.89,196.88,24.7634302]
[1736312763666,12.45457429,196.89,196.85,24.7634302]
[1736312763667,0.12549,196.88,196.85,24.7634302]
[1736312763972,23.902374,196.88,196.87,24.7634302]
[1736312764172,12.45457429,196.89,196.87,24.7634302]
[1736312764352,36.23145829,196.89,196.87,24.7634302]
[1736312764554,0.12549,196.88,196.86,24.7634302]
[1736312764855,12.45457429,196.89,196.81,1.6466]
[1736312764856,12.45457429,196.89,196.87,24.7634302]
[1736312765047,12.45457429,196.89,196.88,24.7634302]
[1736312765364,0.12549,196.88,196.83,24.7634302]
[1736312765567,23.902374,196.88,196.82,24.7634302]
[1736312765750,23.902374,196.86,196.78,24.7634302]
[1736312766165,23.902374,196.84,196.76,24.7634302]
[1736312766669,6.0967,196.86,196.78,24.7634302]
[1736312767048,23.902374,196.85,196.77,24.7634302]
[1736312767367,23.902374,196.85,196.75,24.8134302]
[1736312767569,23.902374,196.85,196.77,24.7634302]
[1736312767768,0.12549,196.83,196.75,0.05]
[1736312768257,24.72961098,196.85,196.75,0.05]
[1736312768646,0.12549,196.84,196.75,0.05]
[1736312768846,0.12549,196.84,196.76,24.7634302]
[1736312769284,6.0967,196.86,196.78,24.7634302]
[1736312769452,7.04918226,196.86,196.76,24.7634302]
[1736312769647,23.902374,196.85,196.75,161.2134302]
[1736312769865,0.12549,196.84,196.77,24.7634302]
[1736312770282,0.12549,196.84,196.79,24.7634302]
[1736312770484,0.12549,196.84,196.81,24.7634302]
[1736312770851,23.776884,196.85,196.81,24.7634302]
[1736312771052,0.12549,196.84,196.8,24.7634302]
[1736312771277,0.12549,196.84,196.79,24.7634302]
[1736312772272,0.12549,196.84,196.81,24.7634302]
[1736312773889,0.12549,196.84,196.79,24.7634302]
[1736312774191,0.12549,196.84,196.75,24.8134302]
[1736312774387,0.12549,196.84,196.77,24.7634302]
[1736312774754,0.12549,196.84,196.79,24.7634302]
[1736312775476,0.12549,196.84,196.81,24.7634302]
[1736312776263,23.776884,196.85,196.81,24.7634302]
[1736312776462,2.52,196.86,196.81,24.7634302]
[1736312777367,23.902374,196.88,196.81,24.7634302]
[1736312777570,0.12549,196.88,196.81,24.7634302]
[1736312777958,23.902374,196.88,196.81,24.7634302]
[1736312778583,23.902374,196.88,196.79,44.7634302]
[1736312779359,24.85482819,196.88,196.79,44.7634302]
[1736312779574,23.902374,196.87,196.75,0.05]
[1736312779793,23.902374,196.83,196.75,0.05]
[1736312779977,23.902374,196.81,196.75,0.05]
[1736312780767,23.902374,196.81,196.75,24.8134302]
[1736312780966,2.52,196.82,196.75,24.8134302]
[1736312781283,23.902374,196.81,196.75,24.8134302]
[1736312781882,23.902374,196.81,196.77,24.7634302]
[1736312782384,2.52,196.82,196.79,24.7634302]
[1736312783084,23.776884,196.81,196.77,24.7634302]
[1736312784687,1.5728,196.89,196.79,161.1634302]
[1736312784688,2.52,196.89,196.79,161.1634302]
[1736312784861,2.52,196.89,196.82,24.7634302]
[1736312785262,1.5728,196.94,196.82,24.7634302]
[1736312785459,1.5728,196.94,196.86,24.7634302]
[1736312785660,2.52,196.93,196.86,24.7634302]
[1736312785969,23.902374,196.9,196.86,24.7634302]
[1736312786165,2.56,196.94,196.86,24.7634302]
[1736312786377,6.2585,196.97,196.9,24.7634302]
[1736312787567,0.12549,196.95,196.9,24.7634302]
[1736312787764,2.56,197.0,196.9,161.1634302]
[1736312788168,2.56,197.0,196.94,24.7634302]
[1736312788891,0.12549,196.99,196.94,24.7634302]
[1736312789087,6.2585,197.07,196.96,24.7634302]
[1736312789293,2.56,197.05,196.96,161.1634302]
[1736312789477,2.56,197.06,196.98,24.7634302]
[1736312789677,23.902374,197.05,196.99,24.7634302]
[1736312789894,7.29370535,197.12,197.0,24.7634302]
[1736312790186,7.29370535,197.12,197.01,24.7634302]
[1736312790489,8.9021,197.12,197.02,24.7634302]
[1736312790692,23.902374,197.11,197.02,24.7634302]
[1736312790877,8.9021,197.12,197.03,24.7634302]
[1736312791284,23.902374,197.11,197.03,24.7634302]
[1736312791582,23.902374,197.11,196.97,136.4]
[1736312791583,23.902374,197.07,196.97,136.4]
[1736312791770,23.902374,197.07,197.03,24.7634302]
[1736312791972,0.12549,197.07,197.02,24.7634302]
[1736312792173,0.12549,197.1,196.99,24.7634302]
[1736312792388,23.902374,197.07,196.97,136.4]
[1736312792689,23.902374,197.05,196.97,24.7634302]
[1736312792885,2.68549,197.05,196.96,24.7634302]
[1736312793286,26.462374,197.05,196.96,24.7634302]
[1736312793488,0.12549,197.03,196.96,24.7634302]
[1736312794469,0.12549,197.03,196.95,24.7634302]
[1736312795076,0.12549,197.01,196.93,24.7634302]
[1736312795587,0.12549,196.99,196.93,24.7634302]
[1736312796120,0.12549,196.99,196.91,24.7634302]
[1736312796285,23.902374,196.97,196.91,24.7634302]
[1736312796489,23.902374,196.97,196.89,24.7634302]
[1736312796800,2.56,196.98,196.89,24.7634302]
[1736312796991,23.902374,196.97,196.89,24.7634302]
[1736312797188,23.902374,196.97,196.91,24.7634302]
[1736312797697,23.902374,196.97,196.92,24.7634302]
[1736312797897,23.902374,196.97,196.91,24.7634302]
[1736312798076,23.902374,196.97,196.92,24.7634302]